fUSD/lending_fUSD_20240416
["ID","MTS","AMOUNT","RATE_DAILY","PERIOD"]
[322790560,1713298240411,-17032.01093999,0.00016322,2]
[322790561,1713298240421,-225.0,0.00016322,2]
[322790562,1713298240430,-1000.0,0.00016322,2]
[322790563,1713298240439,-167.48,0.00016334,2]
[322790564,1713298240449,-500.0,0.00016347,2]
[322790565,1713298240458,-150.0,0.00016347,2]
[322790566,1713298240467,-1614.8,0.00016347,2]
[322790567,1713298240476,-150.99,0.00016347,2]
[322790568,1713298240485,-499.99,0.00016347,2]
[322790569,1713298240494,-1489.34,0.00016349,2]
[322790570,1713298240503,-500.0,0.0001635,2]
[322790571,1713298240513,-200.0,0.00016368,2]
[322790572,1713298240522,-519.07030047,0.000164,2]
[322790573,1713298240531,-509.39,0.0001642,2]
[322790574,1713298240540,-3642.77,0.0001642,2]
[322790575,1713298240549,-500.0,0.00016443,2]
[322790576,1713298240558,-155.7833668,0.00016498,2]
[322790577,1713298240567,-150.99,0.000165,2]
[322790578,1713298240576,-1545.92,0.000165,2]
[322790579,1713298240585,-1222.95023345,0.000165,2]
[322790580,1713298240594,-3914.4,0.00016506,2]
[322790581,1713298240603,-1196.45,0.00016513,2]
[322790582,1713298240613,-202.18,0.00016637,2]
[322790583,1713298240622,-202.18,0.00016682,2]
[322790584,1713298240632,-155.7833668,0.00016697,2]
[322790585,1713298240642,-176.0,0.00016705,2]
[322790586,1713298240652,-999.99,0.00016709,2]
[322790587,1713298240662,-202.18,0.00016728,2]
[322790588,1713298240671,-202.18,0.00016773,2]
[322790589,1713298240681,-418.65,0.00016778,2]
[322790590,1713298240691,-162.56,0.00016778,2]
[322790591,1713298240701,-150.0,0.00016778,2]
[322790592,1713298240710,-418.65,0.000168,2]
[322790593,1713298240719,-150.0,0.000168,2]
[322790594,1713298240729,-162.56,0.000168,2]
[322790595,1713298240738,-418.65,0.000168,2]
[322790596,1713298240747,-150.0,0.000168,2]
[322790597,1713298240756,-162.56,0.000168,2]
[322790598,1713298240765,-202.18,0.00016819,2]
[322790599,1713298240774,-311.46,0.00016837,2]
[322790600,1713298240783,-845.52,0.00016859,2]
[322790601,1713298240792,-202.18,0.00016865,2]
[322790602,1713298240801,-155.7833668,0.00016897,2]
[322790603,1713298240811,-202.18,0.0001691,2]
[322790604,1713298240820,-202.18,0.00016956,2]
[322790605,1713298240829,-162.56,0.00016978,2]
[322790606,1713298240839,-150.0,0.00016978,2]
[322790607,1713298240849,-150.0,0.00016978,2]
[322790608,1713298240859,-521.35,0.00016978,2]
[322790609,1713298240869,-418.65,0.00016978,2]
[322790610,1713298240878,-202.18,0.00017002,2]
[322790611,1713298240887,-202.18,0.00017047,2]
[322790612,1713298240897,-202.18,0.00017093,2]
[322790613,1713298240907,-155.7833668,0.00017097,2]
[322790614,1713298240925,-202.18,0.00017138,2]
[322790615,1713298240935,-162.56,0.00017178,2]
[322790616,1713298240945,-162.56,0.00017178,2]
[322790617,1713298240955,-162.56,0.00017178,2]
[322790618,1713298240967,-162.56,0.00017178,2]
[322790619,1713298240978,-162.56,0.00017178,2]
[322790620,1713298240988,-161.56,0.00017178,2]
[322790621,1713298240997,-202.18,0.00017184,2]
[322790622,1713298241007,-202.18,0.0001723,2]
[322790623,1713298241017,-202.18,0.00017275,2]
[322790624,1713298241026,-162.56,0.000173,2]
[322790625,1713298241037,-202.18,0.00017321,2]
[322790626,1713298241046,-202.18,0.00017366,2]
[322790627,1713298241057,-162.56,0.000174,2]
[322790628,1713298241067,-202.18,0.00017412,2]
[322790629,1713298241077,-202.18,0.00017458,2]
[322790630,1713298241086,-202.18,0.00017503,2]
[322790631,1713298241097,-471.75,0.00017577,2]
[322790632,1713298241107,-471.75,0.00017581,2]
[322790633,1713298241117,-471.75,0.00017586,2]
[322790634,1713298241126,-471.75,0.00017591,2]
[322790635,1713298241136,-471.75,0.00017595,2]
[322790636,1713298241146,-471.75,0.000176,2]
[322790637,1713298241155,-2412.0,0.000176,2]
[322790638,1713298241165,-417.99,0.000176,2]
[322790639,1713298241174,-304.74,0.000176,2]
[322790640,1713298241184,-162.56,0.000176,2]
[322790641,1713298241194,-471.75,0.00017605,2]
[322790642,1713298241205,-471.75,0.00017609,2]
[322790643,1713298241215,-471.75,0.00017614,2]
[322790644,1713298241227,-471.75,0.00017618,2]
[322790645,1713298241237,-471.75,0.00017623,2]
[322790646,1713298241247,-471.75,0.00017628,2]
[322790647,1713298241258,-471.75,0.00017632,2]
[322790648,1713298241268,-471.75,0.00017637,2]
[322790649,1713298241278,-471.75,0.00017642,2]
[322790650,1713298241289,-471.75,0.00017646,2]
[322790651,1713298241299,-471.75,0.00017651,2]
[322790652,1713298241311,-471.75,0.00017656,2]
[322790653,1713298241322,-471.75,0.0001766,2]
[322790654,1713298241331,-471.75,0.00017665,2]
[322790655,1713298241340,-200.0,0.00017856,2]
[322790656,1713298241349,-8221.37153757,0.0001788,2]
[322790657,1713298241358,-2177.96914085,0.00017891,2]
[322790658,1713298241367,-63193.65616017,0.00017892,2]
[322790659,1713298241376,-300.0,0.00017899,2]
[322790660,1713298241385,-206.86865437,0.000179,2]
[322790661,1713298241394,-394.67100911,0.000179,2]
[322790662,1713298241402,-285.8266,0.000179,2]
[322790663,1713298241412,-165.27806526,0.000179,2]
[322790664,1713298241421,-680.54389014,0.0001792,2]
[322790665,1713298241434,-5206.45610986,0.0001792,2]
[322790666,1713298241443,-2703.0,0.0001792,2]
[322790667,1713298241452,-5723.0,0.0001792,2]
[322790668,1713298241461,-10631.27854769,0.0001792,2]
[322790669,1713298241474,-3183.80000012,0.0001792,2]
[322790670,1713298241517,-23829.92145219,0.0001792,2]
[322790671,1713298241527,-1054.0,0.0001792,2]
[322790672,1713298241537,-210.0,0.00017953,2]
[322790673,1713298241547,-64000.987927,0.0001799,2]
[322790674,1713298241560,-197705.65664582,0.00017995,2]
[322790675,1713298241570,-203453.37924623,0.00017995,2]
[322790676,1713298241580,-1861.5318906,0.00017997,2]
[322790677,1713298241591,-6880.1830862,0.00017997,2]
[322790678,1713298241601,-3576.1212113,0.00017997,2]
[322790679,1713298241611,-267.72704526,0.00017998,2]
[322790680,1713298241622,-271.01572272,0.00017998,2]
[322790681,1713298241632,-110481.76949314,0.00017999,2]
[322790682,1713298241643,-252.95377861,0.00017999,2]
[322790683,1713298241657,-229.51547387,0.00017999,2]
[322790684,1713298241670,-280.32758,0.00017999,2]
[322790685,1713298241681,-556.0,0.00018,2]
[322790686,1713298241691,-2635817.96132747,0.00018,2]
[322790687,1713298241774,-500.0,0.000179,2]
[322790688,1713298241787,-580.7432645,0.000179,2]
[322790689,1713298241796,-425.8887355,0.00018,2]
[322790690,1713298241813,-2543.68670773,0.00018,2]
[322790717,1713298243572,-418.65,0.00016778,2]
[322790718,1713298243581,-150.0,0.00016778,2]
[322790719,1713298243591,-162.56,0.00016778,2]
[322790720,1713298243600,-155.7833668,0.00017296,2]
[322790721,1713298243610,-28.40706975,0.00018,2]
[322790722,1713298243634,-951.76745371,0.00018,2]
[322790723,1713298243646,-844.81,0.00018,2]
[322790724,1713298243657,-1171.50842,0.00018,2]
[322790725,1713298243692,-595.04488429,0.00018,2]
[322790728,1713298244260,-1987.17491147,0.00018,2]
[322790729,1713298244272,-7182.06031289,0.00018,2]
[322790730,1713298246449,-285.86354147,0.00018,2]
[322790731,1713298246505,-52946.50151194,0.00018,2]
[322790732,1713298246516,-12575.9016,0.00018,2]
[322790733,1713298246598,-11631.30465014,0.00018,2]
[322790734,1713298246695,-167440.11132035,0.00018,2]
[322790735,1713298246706,-154459.65201078,0.00018,2]
[322790736,1713298246717,-68202.16941194,0.00018,2]
[322790737,1713298246728,-703.02950724,0.00018,2]
[322790738,1713298303501,500.0,0.00032168,30]
[322790739,1713298340460,842.16,0.0001516,2]
[322790740,1713298383582,150042.17423341,0.00032168,30]
[322790741,1713298427875,344.10978337,0.00032168,30]
[322790742,1713298435241,234.75147604,0.00032168,30]
[322790743,1713298441004,500.0,0.00032168,30]
[322790767,1713298510183,208.95,0.00025187,120]
[322790783,1713298552743,500.0,0.0003217,30]
[322790784,1713298553024,218.90268807,0.0003217,30]
[322790802,1713298589358,500.0,0.0003217,30]
[322790806,1713298616461,500.0,0.0003217,30]
[322790811,1713298652845,158.89105118,0.0003217,30]
[322790814,1713298678450,-155.0,0.00016615,2]
[322790815,1713298678471,-1222.95023345,0.00016616,2]
[322790816,1713298678491,-155.0,0.00016616,2]
[322790817,1713298678511,-467.04976655,0.00016616,2]
[322790818,1713298679342,-2000.0,0.0001639,2]
[322790819,1713298681289,-2000.0,0.0001639,2]
[322790820,1713298682505,-1488.27,0.0001639,2]
[322790821,1713298682526,-511.73,0.00016614,2]
[322790822,1713298683231,-274.70640324,0.00016614,2]
[322790823,1713298683252,-155.0,0.00016614,2]
[322790824,1713298683273,-155.0,0.00016614,2]
[322790825,1713298683293,-343.01364445,0.00016614,2]
[322790826,1713298683313,-150.0,0.00016616,2]
[322790827,1713298683333,-238.77204518,0.00016616,2]
[322790828,1713298683353,-683.50790713,0.00016617,2]
[322790829,1713298685182,-164.35295761,0.00016389,2]
[322790830,1713298685204,-557.53119963,0.00016617,2]
[322790831,1713298685226,-155.0,0.00016617,2]
[322790832,1713298685248,-202.14216056,0.00016617,2]
[322790833,1713298685271,-192.56707976,0.00016618,2]
[322790834,1713298685294,-200.0,0.00016619,2]
[322790835,1713298685315,-528.40660244,0.00016777,2]
[322790837,1713298693233,-1272.4395,0.00016388,2]
[322790838,1713298846096,800.05,0.00014925,2]
[322790839,1713298853128,500.0,0.00032175,30]
[322790840,1713298982989,1090.0,0.00017,5]
[322790844,1713299198136,-155.7833668,0.00016247,2]
[322790845,1713299198156,-2593.32796434,0.00016343,2]
[322790848,1713299376154,537.5001465,0.00032247,30]
[322790849,1713299382187,760.04,0.00014375,2]
[322790859,1713299431698,-3379.72665766,0.00016262,2]
[322790860,1713299431708,-621.34527472,0.00016263,2]
[322790861,1713299431718,-155.0,0.00016264,2]
[322790862,1713299431726,-3054.92806762,0.00016264,2]
[322790863,1713299431738,-2486.29866234,0.00016264,2]
[322790864,1713299431747,-786.43640324,0.00016264,2]
[322790865,1713299431757,-2177.64568251,0.00016264,2]
[322790866,1713299431766,-1241.03910676,0.00016265,2]
[322790867,1713299431775,-8897.30242736,0.00016265,2]
[322790868,1713299431784,-150.0,0.00016266,2]
[322790869,1713299431793,-150.0,0.00016266,2]
[322790870,1713299431804,-3658.51,0.00016273,2]
[322790871,1713299431813,-500.0,0.00016319,2]
[322790872,1713299431822,-840.0,0.00016348,2]
[322790873,1713299431831,-200.0,0.00016375,2]
[322790874,1713299431839,-225.17,0.00016414,2]
[322790875,1713299431848,-398.75526945,0.00016438,2]
[322790876,1713299431857,-6065.99034754,0.00016478,2]
[322790877,1713299431872,-414.8034,0.00016478,2]
[322790878,1713299431999,-406.13838012,0.00016478,2]
[322790879,1713299432022,-414.95236416,0.00016478,2]
[322790881,1713299432033,-277.94262863,0.00016478,2]
[322790883,1713299432045,-16320.17287955,0.00016478,2]
[322790884,1713299432054,-499.99,0.00016478,2]
[322790885,1713299432063,-819.89,0.00016549,2]
[322790886,1713299432072,-250.0,0.00016554,2]
[322790887,1713299432081,-3413.2,0.00016597,2]
[322790889,1713299432090,-760.04,0.00016639,2]
[322790891,1713299432100,-150.0,0.00016759,2]
[322790894,1713299432109,-208.95,0.00016792,2]
[322790896,1713299432118,-150.99,0.00016837,2]
[322790898,1713299432128,-3172.90460698,0.0001686,2]
[322790900,1713299432137,-7532.35,0.0001687,2]
[322790902,1713299432146,-155.7833668,0.00017074,2]
[322790904,1713299432155,-156.63,0.00017249,2]
[322790906,1713299432164,-282.8206,0.00017388,2]
[322790908,1713299432173,-199.7,0.0001761,2]
[322790910,1713299432182,-803.0,0.000177,2]
[322790911,1713299432192,-167.02,0.00017767,2]
[322790912,1713299432201,-3849.64712288,0.000178,2]
[322790913,1713299432210,-255.8634,0.000178,2]
[322790914,1713299432219,-2500.0,0.000178,2]
[322790915,1713299432228,-233.60632,0.0001782,2]
[322790916,1713299432237,-8773.10174063,0.0001788,2]
[322790917,1713299432246,-541.17402358,0.00017892,2]
[322790918,1713299432256,-210.0,0.00017893,2]
[322790919,1713299432270,-46169.75356777,0.000179,2]
[322790920,1713299432280,-190.20448311,0.000179,2]
[322790921,1713299432290,-171.25463459,0.000179,2]
[322790922,1713299432299,-2305.2564,0.000179,2]
[322790923,1713299432310,-175.67268059,0.000179,2]
[322790924,1713299432319,-155.7833668,0.000179,2]
[322790925,1713299432328,-2244.59548354,0.000179,2]
[322790926,1713299432339,-7494.8184562,0.000179,2]
[322790927,1713299432348,-185.41458989,0.000179,2]
[322790928,1713299432357,-165.27806526,0.000179,2]
[322790929,1713299432366,-156.62064813,0.000179,3]
[322790930,1713299432375,-2729.51998372,0.000179,2]
[322790931,1713299432384,-13566.04815404,0.000179,2]
[322790932,1713299432394,-800.0,0.00017973,2]
[322790933,1713299432403,-800.0,0.00017973,2]
[322790934,1713299432411,-800.0,0.00017973,2]
[322790935,1713299432420,-427.77076856,0.00017989,2]
[322790936,1713299432430,-41987.02627963,0.00017992,2]
[322790937,1713299432450,-3026.4077798,0.00017992,2]
[322790938,1713299432461,-453.51,0.00017992,2]
[322790941,1713299437555,-173.72520228,0.0001799,2]
[322790942,1713299437565,-173.72520228,0.0001799,2]
[322790943,1713299437574,-1360.03395863,0.00017992,2]
[322790944,1713299437585,-6276.71736,0.00017992,2]
[322790945,1713299437611,-375.38415729,0.00017992,2]
[322790946,1713299437622,-324.95664198,0.00017992,2]
[322790947,1713299437773,-3370.01740563,0.00017992,2]
[322790983,1713299440314,-7125.0,0.00017992,2]
[322790984,1713299440614,-8108.63007664,0.00017992,2]
[322790986,1713299440625,-1028.17144336,0.00017992,2]
[322790988,1713299440637,-257.59616578,0.00017992,2]
[322790990,1713299440649,-1448.83467156,0.00017992,2]
[322790992,1713299440660,-3044.3901507,0.00017992,2]
[322790993,1713299440671,-155.56538191,0.00017998,2]
[322790994,1713299440681,-359.92801929,0.00017998,2]
[322790995,1713299440690,-239.18157609,0.00017998,2]
[322790996,1713299440700,-155.8210919,0.00017998,2]
[322790997,1713299440710,-200.46043924,0.00017998,2]
[322790998,1713299440719,-180.82061113,0.00017998,2]
[322790999,1713299440729,-155.51813378,0.00017998,2]
[322791000,1713299440739,-1761.6960607,0.00017998,2]
[322791001,1713299440748,-156.19334706,0.00017998,2]
[322791002,1713299440757,-553.21837977,0.00017998,2]
[322791003,1713299440766,-222.79021237,0.00017998,2]
[322791004,1713299440776,-155.96289677,0.00017998,2]
[322791005,1713299440785,-194.55725768,0.00017998,2]
[322791006,1713299440794,-596.94302897,0.00017998,2]
[322791007,1713299440803,-155.4107171,0.00017998,2]
[322791008,1713299440812,-9078.12214885,0.00017998,2]
[322791009,1713299440821,-190.99719088,0.00017998,2]
[322791010,1713299440830,-362.68041687,0.00017998,2]
[322791011,1713299440839,-619.08414125,0.00017998,2]
[322791012,1713299440849,-157.27213382,0.00017998,2]
[322791013,1713299440857,-9625.6026739,0.00017998,2]
[322791014,1713299440866,-155.86659337,0.00017998,2]
[322791015,1713299440875,-155.24966131,0.00017998,2]
[322791016,1713299440885,-199.74257633,0.00017998,2]
[322791017,1713299440893,-156.14205328,0.00017998,2]
[322791018,1713299440902,-260.66640694,0.00017998,2]
[322791019,1713299440911,-254.11589084,0.00017998,2]
[322791020,1713299440920,-2929.59794809,0.00017998,2]
[322791021,1713299440929,-286.61901291,0.00017998,2]
[322791022,1713299440938,-490.18474855,0.00017998,2]
[322791023,1713299440948,-9114.98491769,0.00017998,2]
[322791024,1713299440958,-1476.46668772,0.00017998,2]
[322791025,1713299440967,-9756.35288366,0.00017998,2]
[322791026,1713299440976,-210.85118914,0.00017998,2]
[322791027,1713299440985,-155.0,0.00017998,2]
[322791028,1713299440995,-574.20452515,0.00017998,2]
[322791029,1713299441004,-2031.87318928,0.00017998,2]
[322791030,1713299441013,-404.73102028,0.00017998,2]
[322791031,1713299441023,-304.46832005,0.00017998,2]
[322791032,1713299441032,-310.46828507,0.00017998,2]
[322791033,1713299441041,-155.0,0.00017998,2]
[322791034,1713299441050,-408.15974753,0.00017998,2]
[322791035,1713299441058,-268.85140275,0.00017998,2]
[322791036,1713299441067,-245.08709582,0.00017998,2]
[322791037,1713299441076,-155.0,0.00017998,2]
[322791038,1713299441085,-1127.05013364,0.00017998,2]
[322791039,1713299441094,-201.49901511,0.00017998,2]
[322791040,1713299441103,-236.2586598,0.00017998,2]
[322791041,1713299441112,-155.0,0.00017998,2]
[322791042,1713299441121,-199.70370161,0.00017998,2]
[322791043,1713299441130,-160.1828942,0.00017998,2]
[322791044,1713299441139,-285.46840956,0.00017998,2]
[322791045,1713299441148,-196.41457958,0.00017998,2]
[322791046,1713299441157,-206.34862353,0.00017998,2]
[322791047,1713299441166,-798.95088335,0.00017998,2]
[322791048,1713299441176,-155.76644893,0.00017998,2]
[322791049,1713299441185,-975.31084692,0.00017998,2]
[322791050,1713299441194,-155.71048596,0.00017998,2]
[322791051,1713299441203,-200.88412191,0.00017998,2]
[322791052,1713299441212,-373.42890414,0.00017998,2]
[322791053,1713299441222,-173.45241683,0.00017998,2]
[322791054,1713299441231,-213.72262998,0.00017998,2]
[322791055,1713299441240,-193.63627872,0.00017998,2]
[322791056,1713299441250,-164.21135614,0.00017998,2]
[322791057,1713299441260,-155.2599321,0.00017998,2]
[322791058,1713299441271,-704.13783815,0.00017998,2]
[322791059,1713299441281,-1825.76442121,0.00017998,2]
[322791060,1713299441289,-1756.88615012,0.00017998,2]
[322791061,1713299441298,-155.55514414,0.00017999,2]
[322791062,1713299441309,-157.28664772,0.00017999,2]
[322791063,1713299441317,-505.0,0.00018,2]
[322791064,1713299441326,-3475924.52905037,0.00018,2]
[322791065,1713299441340,-6373.10503876,0.00018,2]
[322791066,1713299441349,-155.0,0.00018,2]
[322791067,1713299441359,-482.0,0.00018,2]
[322791068,1713299441368,-509.28969222,0.00018,2]
[322791069,1713299441378,-660.0,0.00018,2]
[322791070,1713299441387,-992.16825832,0.00018,2]
[322791071,1713299441396,-992.16825832,0.00018,2]
[322791072,1713299441405,-992.16825832,0.00018,2]
[322791073,1713299441414,-992.16825832,0.00018,2]
[322791074,1713299441423,-992.16825832,0.00018,2]
[322791075,1713299441433,-992.16825832,0.00018,2]
[322791076,1713299441442,-992.16825832,0.00018,2]
[322791077,1713299441453,-992.16825832,0.00018,2]
[322791078,1713299441462,-992.16825832,0.00018,2]
[322791079,1713299441471,-992.16825832,0.00018,2]
[322791080,1713299441480,-992.16825832,0.00018,2]
[322791081,1713299441490,-992.16825832,0.00018,2]
[322791082,1713299441499,-992.16825832,0.00018,2]
[322791083,1713299441509,-992.16825832,0.00018,2]
[322791084,1713299441518,-992.16825832,0.00018,2]
[322791085,1713299441527,-992.16825832,0.00018,2]
[322791086,1713299441536,-992.16825832,0.00018,2]
[322791087,1713299441545,-992.16825832,0.00018,2]
[322791088,1713299441554,-992.16825832,0.00018,2]
[322791089,1713299441563,-992.16825832,0.00018,2]
[322791090,1713299441573,-992.16825832,0.00018,2]
[322791091,1713299441582,-992.16825832,0.00018,2]
[322791092,1713299441591,-992.16825832,0.00018,2]
[322791093,1713299441601,-992.16825832,0.00018,2]
[322791094,1713299441611,-992.16825832,0.00018,2]
[322791095,1713299441620,-992.16825832,0.00018,2]
[322791096,1713299441630,-992.16825832,0.00018,2]
[322791097,1713299441640,-992.16825832,0.00018,2]
[322791098,1713299441649,-992.16825832,0.00018,2]
[322791099,1713299441658,-992.16825832,0.00018,2]
[322791100,1713299441666,-992.16825832,0.00018,2]
[322791101,1713299441675,-992.16825832,0.00018,2]
[322791102,1713299441684,-992.16825832,0.00018,2]
[322791103,1713299441693,-992.16825832,0.00018,2]
[322791104,1713299441702,-992.16825832,0.00018,2]
[322791105,1713299441711,-992.16825832,0.00018,2]
[322791106,1713299441720,-992.16825832,0.00018,2]
[322791107,1713299441729,-992.16825832,0.00018,2]
[322791108,1713299441739,-992.16825832,0.00018,2]
[322791109,1713299441748,-992.16825832,0.00018,2]
[322791110,1713299441757,-992.16825832,0.00018,2]
[322791111,1713299441768,-992.16825832,0.00018,2]
[322791112,1713299441777,-992.16825832,0.00018,2]
[322791113,1713299441786,-992.16825832,0.00018,2]
[322791114,1713299441795,-992.16825832,0.00018,2]
[322791115,1713299441804,-992.16825832,0.00018,2]
[322791116,1713299441813,-992.16825832,0.00018,2]
[322791117,1713299441822,-992.16825832,0.00018,2]
[322791118,1713299441832,-992.16825832,0.00018,2]
[322791119,1713299441841,-992.16825832,0.00018,2]
[322791120,1713299441850,-992.16825832,0.00018,2]
[322791121,1713299441859,-992.16825832,0.00018,2]
[322791122,1713299441868,-992.16825832,0.00018,2]
[322791123,1713299441877,-992.16825832,0.00018,2]
[322791124,1713299441886,-992.16825832,0.00018,2]
[322791125,1713299441895,-992.16825832,0.00018,2]
[322791126,1713299441904,-992.16825832,0.00018,2]
[322791127,1713299441913,-992.16825832,0.00018,2]
[322791128,1713299441923,-992.16825832,0.00018,2]
[322791129,1713299441931,-992.16825832,0.00018,2]
[322791130,1713299441941,-992.16825832,0.00018,2]
[322791131,1713299441952,-992.16825832,0.00018,2]
[322791132,1713299441961,-992.16825832,0.00018,2]
[322791133,1713299441970,-992.16825832,0.00018,2]
[322791134,1713299441980,-992.16825832,0.00018,2]
[322791135,1713299441989,-992.16825832,0.00018,2]
[322791136,1713299441999,-992.16825832,0.00018,2]
[322791137,1713299442009,-992.16825832,0.00018,2]
[322791138,1713299442018,-992.16825832,0.00018,2]
[322791139,1713299442027,-992.16825832,0.00018,2]
[322791140,1713299442036,-992.16825832,0.00018,2]
[322791141,1713299442045,-992.16825832,0.00018,2]
[322791142,1713299442054,-992.16825832,0.00018,2]
[322791143,1713299442063,-992.16825832,0.00018,2]
[322791144,1713299442072,-992.16825832,0.00018,2]
[322791145,1713299442081,-992.16825832,0.00018,2]
[322791146,1713299442090,-992.16825832,0.00018,2]
[322791147,1713299442099,-992.16825832,0.00018,2]
[322791148,1713299442109,-992.16825832,0.00018,2]
[322791149,1713299442118,-992.16825832,0.00018,2]
[322791150,1713299442127,-992.16825832,0.00018,2]
[322791151,1713299442136,-992.16825832,0.00018,2]
[322791152,1713299442146,-992.16825832,0.00018,2]
[322791153,1713299442155,-992.16825832,0.00018,2]
[322791154,1713299442164,-992.16825832,0.00018,2]
[322791155,1713299442174,-992.16825832,0.00018,2]
[322791156,1713299442183,-992.16825832,0.00018,2]
[322791157,1713299442193,-992.16825832,0.00018,2]
[322791158,1713299442203,-992.16825832,0.00018,2]
[322791159,1713299442212,-992.16825832,0.00018,2]
[322791160,1713299442221,-992.16825832,0.00018,2]
[322791161,1713299442230,-992.16825832,0.00018,2]
[322791162,1713299442239,-992.16825832,0.00018,2]
[322791163,1713299442248,-992.16825832,0.00018,2]
[322791164,1713299442258,-992.16825832,0.00018,2]
[322791165,1713299442269,-992.16825832,0.00018,2]
[322791166,1713299442278,-992.16825832,0.00018,2]
[322791167,1713299442288,-992.16825832,0.00018,2]
[322791168,1713299442297,-992.16825832,0.00018,2]
[322791169,1713299442308,-992.16825832,0.00018,2]
[322791170,1713299442317,-157.4972586,0.00018009,2]
[322791171,1713299442326,-541.17402353,0.00018022,2]
[322791172,1713299442335,-8773.10174058,0.00018033,2]
[322791173,1713299442344,-46169.75356769,0.00018082,2]
[322791174,1713299442353,-1401.42928059,0.00018087,2]
[322791175,1713299442363,-541.17402353,0.00018151,2]
[322791176,1713299442372,-1949.0,0.0001826,2]
[322791177,1713299442381,-807.0,0.0001826,2]
[322791178,1713299442390,-609.0,0.0001826,2]
[322791179,1713299442399,-436.0,0.0001826,2]
[322791180,1713299442408,-257.0,0.0001826,2]
[322791181,1713299442417,-2442.0,0.0001826,2]
[322791182,1713299442427,-1472.0,0.0001826,2]
[322791183,1713299442436,-399.0,0.0001826,2]
[322791184,1713299442445,-150.0,0.0001826,2]
[322791185,1713299442455,-3078.0,0.0001826,2]
[322791187,1713299442464,-1638.0,0.0001826,2]
[322791189,1713299442473,-150.0,0.0001826,2]
[322791191,1713299442482,-214.0,0.0001826,2]
[322791193,1713299442492,-355.0,0.0001826,2]
[322791195,1713299442502,-443.0,0.0001826,2]
[322791197,1713299442512,-2703.0,0.0001826,2]
[322791199,1713299442521,-9373.783,0.0001826,2]
[322791200,1713299442531,-1400.326,0.0001826,2]
[322791201,1713299442540,-5887.0,0.0001826,2]
[322791202,1713299442549,-1392.0,0.0001826,2]
[322791203,1713299442559,-968.0,0.0001826,2]
[322791204,1713299442569,-461.0,0.0001826,2]
[322791205,1713299442579,-2292.0,0.0001826,2]
[322791206,1713299442589,-1054.0,0.0001826,2]
[322791208,1713299442599,-46169.75356769,0.00018264,2]
[322791209,1713299442609,-8773.10174058,0.00018267,2]
[322791210,1713299442618,-541.17402353,0.00018281,2]
[322791211,1713299442628,-3452.0299277,0.00018298,2]
[322791213,1713299442638,-233.60632,0.0001831,2]
[322791214,1713299442647,-2244.59548352,0.0001835,2]
[322791215,1713299442657,-7494.8184562,0.0001835,2]
[322791216,1713299442666,-182.018,0.0001836,2]
[322791217,1713299442675,-150.0,0.0001836,2]
[322791218,1713299442684,-150.0,0.0001836,2]
[322791219,1713299442694,-2729.51998371,0.0001839,2]
[322791220,1713299442705,-840.0,0.00018392,2]
[322791221,1713299442715,-171.25463459,0.000184,2]
[322791222,1713299442724,-541.17402353,0.00018411,2]
[322791223,1713299442733,-46169.75356769,0.00018445,2]
[322791224,1713299442742,-225.17,0.00018466,2]
[322791225,1713299442752,-316.88457777,0.00018471,2]
[322791226,1713299442761,-8773.10174058,0.000185,2]
[322791227,1713299442771,-541.17402353,0.00018541,2]
[322791228,1713299442780,-408.397,0.00018564,2]
[322791229,1713299442788,-316.88457777,0.00018614,2]
[322791230,1713299442797,-13917.30321197,0.00018627,2]